[Event "Mistrovství Čech mládeže 2023 - HD12"]
[Site "Harrachov, Czech Republic"]
[Date "2023.10.28"]
[Round "9.16"]
[White "Rendl, Luboš"]
[Black "Vrátný, Vojtěch"]
[Result "1-0"]
[TimeControl "90m + 30s"]
[WhiteElo "1420"]
[BlackElo "1210"]

1. Nf3 {[%clk 01:30:50]} {[%emt 00:00:09]} Nf6 {[%clk 01:30:46]} {[%emt
00:00:15]} 2. d4 {[%emt 00:00:52]} g6 {[%clk 01:31:01]} 3. c4 {[%clk 01:30:59]}
{[%emt 00:00:14]} Bg7 {[%clk 01:31:21]} {[%emt 00:00:09]} 4. b4 {[%emt
00:00:18]} O-O {[%clk 01:30:38]} {[%emt 00:01:12]} 5. Bb2 {[%clk 01:31:31]}
{[%emt 00:00:11]} d6 {[%clk 01:30:42]} {[%emt 00:00:26]} 6. e3 {[%clk
01:31:45]} {[%emt 00:00:16]} Nbd7 {[%clk 01:30:13]} {[%emt 00:00:59]} 7. Be2
{[%clk 01:31:27]} {[%emt 00:00:48]} b6 {[%clk 01:30:07]} {[%emt 00:00:37]} 8.
Qd3 {[%clk 01:28:36]} {[%emt 00:03:18]} Bb7 {[%clk 01:30:03]} {[%emt 00:00:35]}
9. Nbd2 {[%clk 01:27:23]} {[%emt 00:01:39]} c5 {[%clk 01:29:01]} {[%emt
00:01:36]} 10. bxc5 {[%clk 01:23:33]} {[%emt 00:04:20]} dxc5 {[%clk 01:26:02]}
{[%emt 00:03:29]} 11. d5 {[%clk 01:20:51]} {[%emt 00:03:13]} Rc8 {[%clk
01:25:39]} {[%emt 00:00:54]} 12. O-O {[%clk 01:20:37]} {[%emt 00:00:43]} Qc7
{[%clk 01:24:29]} {[%emt 00:01:40]} 13. Rfe1 {[%clk 01:19:48]} {[%emt
00:01:18]} Rfd8 {[%clk 01:24:10]} {[%emt 00:00:50]} 14. Rad1 {[%clk 01:17:14]}
{[%emt 00:03:04]} Nf8 {[%clk 01:23:42]} {[%emt 00:00:58]} 15. Be5 {[%clk
01:15:25]} {[%emt 00:02:19]} Qd7 {[%clk 01:22:15]} {[%emt 00:01:56]} 16. h3
{[%clk 01:13:04]} {[%emt 00:02:51]} Ne8 {[%clk 01:18:58]} {[%emt 00:03:48]} 17.
Bxg7 {[%clk 01:06:29]} {[%emt 00:07:05]} Nxg7 {[%emt 00:00:54]} 18. e4 {[%clk
01:04:21]} {[%emt 00:02:35]} e6 {[%clk 01:17:32]} {[%emt 00:01:35]} 19. Nh2
{[%clk 00:59:31]} {[%emt 00:05:20]} Nh5 {[%clk 01:16:51]} {[%emt 00:01:11]} 20.
Bxh5 {[%clk 00:58:32]} {[%emt 00:01:29]} gxh5 {[%clk 01:12:31]} {[%emt
00:04:50]} 21. Re3 {[%clk 00:57:43]} {[%emt 00:01:19]} Ng6 {[%clk 01:12:19]}
{[%emt 00:00:41]} 22. Qe2 {[%clk 00:51:55]} {[%emt 00:06:11]} exd5 {[%clk
01:11:44]} {[%emt 00:01:13]} 23. exd5 {[%clk 00:52:01]} {[%emt 00:00:24]} Re8
{[%clk 01:09:39]} {[%emt 00:02:34]} 24. Ne4 {[%clk 00:51:22]} {[%emt 00:01:06]}
Nf4 {[%clk 01:08:40]} {[%emt 00:01:32]} 25. Nf6+ {[%clk 00:51:33]} {[%emt
00:00:19]} Kg7 {[%clk 01:07:32]} {[%emt 00:01:39]} 26. Nxe8+ {[%clk 00:51:56]}
{[%emt 00:00:06]} Rxe8 {[%clk 01:07:48]} {[%emt 00:00:14]} 27. Qb2+ {[%clk
00:51:38]} {[%emt 00:00:50]} Kg8 {[%clk 01:07:19]} {[%emt 00:00:56]} 28. Rg3+
{[%clk 00:51:46]} {[%emt 00:00:24]} Ng6 {[%clk 01:07:41]} {[%emt 00:00:08]} 29.
Nf3 {[%clk 00:51:21]} {[%emt 00:00:54]} Ba6 {[%clk 01:07:14]} {[%emt 00:00:57]}
30. Ne5 {[%clk 00:51:38]} {[%emt 00:00:14]} Qf5 {[%clk 01:06:07]} {[%emt
00:01:37]} 31. Nxg6 {[%clk 00:51:12]} {[%emt 00:00:56]} hxg6 {[%clk 01:06:28]}
{[%emt 00:00:09]} 32. Rf3 {[%clk 00:50:12]} {[%emt 00:01:27]} Qe5 {[%clk
01:06:40]} {[%emt 00:00:20]} 33. Qxe5 {[%clk 00:47:44]} {[%emt 00:02:59]} Rxe5
{[%clk 01:06:32]} {[%emt 00:00:37]} 34. d6 {[%clk 00:46:53]} {[%emt 00:01:22]}
Re8 {[%clk 01:05:59]} {[%emt 00:01:02]} 35. Re3 {[%clk 00:46:30]} {[%emt
00:00:54]} Rd8 {[%clk 01:06:12]} {[%emt 00:00:17]} 36. Re7 {[%clk 00:43:43]}
{[%emt 00:03:17]} Kf8 {[%clk 01:05:18]} {[%emt 00:01:24]} 37. Rxa7 {[%clk
00:42:01]} {[%emt 00:02:12]} Bxc4 {[%clk 01:05:29]} {[%emt 00:00:18]} 38. Rb7
{[%clk 00:37:54]} {[%emt 00:04:32]} Bxa2 {[%clk 01:04:11]} {[%emt 00:01:53]} 39.
Rxb6 {[%clk 00:38:00]} {[%emt 00:00:25]} c4 {[%clk 01:03:03]} {[%emt 00:01:37]}
40. Rc6 {[%clk 00:36:28]} {[%emt 00:01:56]} Bb3 {[%clk 01:02:25]} {[%emt
00:01:14]} 41. Rd4 {[%clk 00:36:29]} {[%emt 00:00:25]} f5 {[%clk 01:00:15]}
{[%emt 00:02:45]} 42. h4 {[%clk 00:35:43]} {[%emt 00:01:14]} Kf7 {[%clk
00:58:21]} {[%emt 00:02:23]} 43. Kh2 {[%clk 00:34:35]} {[%emt 00:01:40]} Ba2
{[%clk 00:57:27]} {[%emt 00:01:25]} 44. Kg3 {[%clk 00:33:57]} {[%emt 00:01:04]}
1-0

[Event "Mistrovství Čech mládeže 2023 - HD12"]
[Site "Harrachov, Czech Republic"]
[Date "2023.10.28"]
[Round "9.17"]
[White "Křivka, Lukáš"]
[Black "Školoud, Natanael"]
[Result "1/2-1/2"]
[TimeControl "90m + 30s"]
[WhiteElo "1386"]
[BlackElo "1193"]

1. e4 {[%clk 01:30:31]} {[%emt 00:00:28]} e5 {[%clk 01:30:47]} {[%emt
00:00:14]} 2. Nf3 {[%clk 01:30:30]} {[%emt 00:00:31]} Nf6 {[%clk 01:31:11]}
{[%emt 00:00:06]} 3. Nc3 {[%clk 01:29:53]} {[%emt 00:01:07]} Nc6 {[%clk
01:31:35]} {[%emt 00:00:06]} 4. d4 {[%clk 01:27:24]} {[%emt 00:02:59]} exd4
{[%clk 01:29:50]} {[%emt 00:02:15]} 5. Nxd4 {[%clk 01:27:42]} {[%emt 00:00:11]}
Bb4 {[%clk 01:28:25]} {[%emt 00:01:56]} 6. Nxc6 {[%clk 01:27:37]} {[%emt
00:00:34]} bxc6 {[%clk 01:28:35]} {[%emt 00:00:21]} 7. Bd3 {[%clk 01:27:49]}
{[%emt 00:00:17]} O-O {[%clk 01:26:36]} {[%emt 00:02:30]} 8. O-O {[%clk
01:27:48]} {[%emt 00:00:30]} d6 {[%clk 01:21:54]} {[%emt 00:05:14]} 9. Bg5
{[%clk 01:25:35]} {[%emt 00:02:41]} Bc5 {[%clk 01:18:05]} {[%emt 00:04:20]} 10.
Na4 {[%clk 01:23:43]} {[%emt 00:02:22]} Bb6 {[%clk 01:16:04]} {[%emt 00:02:31]}
11. Nxb6 {[%clk 01:23:32]} {[%emt 00:00:41]} cxb6 {[%clk 01:16:21]} {[%emt
00:00:14]} 12. Qf3 {[%clk 01:23:38]} {[%emt 00:00:21]} Be6 {[%clk 01:12:05]}
{[%emt 00:04:48]} 13. Bxf6 {[%clk 01:21:47]} {[%emt 00:02:21]} Qxf6 {[%clk
01:12:17]} {[%emt 00:00:18]} 14. Qxf6 {[%clk 01:22:09]} {[%emt 00:00:08]} gxf6
{[%clk 01:12:43]} {[%emt 00:00:04]} 15. Ba6 {[%clk 01:17:57]} {[%emt 00:04:42]}
Rab8 {[%clk 01:11:44]} {[%emt 00:01:29]} 16. Bd3 {[%clk 01:16:00]} {[%emt
00:02:27]} d5 {[%clk 01:06:40]} {[%emt 00:05:35]} 17. exd5 {[%clk 01:15:29]}
{[%emt 00:01:01]} Bxd5 {[%clk 01:05:41]} {[%emt 00:01:28]} 18. c4 {[%clk
01:15:39]} {[%emt 00:00:20]} Be6 {[%clk 01:05:43]} {[%emt 00:00:28]} 19. b3
{[%clk 01:14:59]} {[%emt 00:01:10]} Rbd8 {[%clk 01:04:16]} {[%emt 00:01:58]} 20.
Rad1 {[%clk 01:15:09]} {[%emt 00:00:19]} Rd7 {[%clk 01:01:35]} {[%emt
00:03:12]} 21. Be2 {[%clk 01:13:27]} {[%emt 00:02:11]} Rfd8 {[%clk 01:01:13]}
{[%emt 00:00:52]} 22. Rxd7 {[%clk 01:13:47]} {[%emt 00:00:10]} Rxd7 {[%clk
01:01:37]} {[%emt 00:00:06]} 23. Rd1 {[%clk 01:14:07]} {[%emt 00:00:09]} Rxd1+
{[%clk 01:01:21]} {[%emt 00:00:47]} 24. Bxd1 {[%clk 01:14:31]} {[%emt
00:00:06]} Kf8 {[%clk 00:59:59]} {[%emt 00:01:52]} 25. Bc2 {[%clk 01:14:55]}
{[%emt 00:00:06]} f5 {[%clk 00:56:25]} {[%emt 00:04:04]} 26. f4 {[%clk
01:14:07]} {[%emt 00:01:17]} Ke7 {[%clk 00:55:38]} {[%emt 00:01:17]} 27. Kf2
{[%clk 01:13:44]} {[%emt 00:00:54]} c5 {[%clk 00:54:21]} {[%emt 00:01:47]} 28.
Ke3 {[%clk 01:12:47]} {[%emt 00:01:22]} a5 {[%clk 00:53:25]} {[%emt 00:01:31]}
29. a4 {[%clk 01:13:08]} {[%emt 00:00:09]} Kf6 {[%clk 00:52:40]} {[%emt
00:01:16]} 1/2-1/2

[Event "Mistrovství Čech mládeže 2023 - HD12"]
[Site "Harrachov, Czech Republic"]
[Date "2023.10.28"]
[Round "9.18"]
[White "Kůsová, Nikola"]
[Black "Kreuzman, Daniel"]
[Result "0-1"]
[TimeControl "90m + 30s"]
[WhiteElo "1324"]
[BlackElo "1169"]

1. e4 {[%clk 01:30:57]} {[%emt 00:00:01]} c6 {[%clk 01:30:27]} {[%emt
00:00:34]} 2. d4 {[%clk 01:31:19]} {[%emt 00:00:08]} d5 {[%clk 01:30:50]}
{[%emt 00:00:08]} 3. f3 {[%clk 01:31:39]} {[%emt 00:00:10]} dxe4 {[%clk
01:31:13]} {[%emt 00:00:06]} 4. fxe4 {[%clk 01:31:57]} {[%emt 00:00:12]} e5
{[%clk 01:31:35]} {[%emt 00:00:08]} 5. Nf3 {[%clk 01:32:19]} {[%emt 00:00:08]}
Bg4 {[%clk 01:32:01]} {[%emt 00:00:05]} 6. Bc4 {[%clk 01:30:16]} {[%emt
00:02:32]} Nd7 {[%clk 01:31:30]} {[%emt 00:01:00]} 7. O-O {[%clk 01:29:58]}
{[%emt 00:00:49]} Ngf6 {[%clk 01:30:24]} {[%emt 00:01:36]} 8. Nc3 {[%clk
01:28:06]} {[%emt 00:02:22]} Bd6 {[%clk 01:29:17]} {[%emt 00:01:37]} 9. Bg5
{[%clk 01:24:09]} {[%emt 00:04:27]} Qb6 {[%clk 01:27:20]} {[%emt 00:02:26]} 10.
Be3 {[%clk 01:16:18]} {[%emt 00:08:22]} Qxb2 {[%clk 01:25:55]} {[%emt
00:01:55]} 11. Qd3 {[%clk 01:15:46]} {[%emt 00:01:02]} Bxf3 {[%clk 01:15:13]}
{[%emt 00:11:12]} 12. Rab1 {[%clk 01:14:28]} {[%emt 00:01:49]} Qa3 {[%clk
01:11:12]} {[%emt 00:04:29]} 13. Rxf3 {[%clk 01:11:05]} {[%emt 00:03:55]} exd4
{[%clk 01:07:10]} {[%emt 00:04:32]} 14. Bxd4 {[%clk 01:10:18]} {[%emt
00:01:16]} Bc5 {[%clk 01:07:04]} {[%emt 00:00:36]} 15. Rxb7 {[%clk 01:07:05]}
{[%emt 00:03:44]} Ne5 {[%clk 01:05:04]} {[%emt 00:02:29]} 16. Qd2 {[%clk
00:58:07]} {[%emt 00:09:28]} Nxf3+ {[%clk 01:03:39]} {[%emt 00:01:55]} 17. gxf3
{[%clk 00:58:25]} {[%emt 00:00:12]} Bxd4+ {[%clk 01:02:28]} {[%emt 00:01:42]}
18. Qxd4 {[%clk 00:58:26]} {[%emt 00:00:29]} O-O {[%clk 00:59:55]} {[%emt
00:03:03]} 19. Bb3 {[%clk 00:54:18]} {[%emt 00:04:37]} Rad8 {[%clk 00:54:48]}
{[%emt 00:05:37]} 20. Qxa7 {[%clk 00:52:57]} {[%emt 00:01:51]} Qc1+ {[%clk
00:53:29]} {[%emt 00:01:48]} 21. Kf2 {[%clk 00:53:16]} {[%emt 00:00:12]} Qd2+
{[%clk 00:47:04]} {[%emt 00:06:54]} 22. Ne2 {[%clk 00:53:02]} {[%emt 00:00:44]}
Rd7 {[%clk 00:46:40]} {[%emt 00:00:55]} 23. e5 {[%clk 00:52:36]} {[%emt
00:00:56]} Rxb7 {[%clk 00:44:14]} {[%emt 00:02:57]} 24. Qxb7 {[%clk 00:52:44]}
{[%emt 00:00:22]} Qd7 {[%clk 00:44:32]} {[%emt 00:00:12]} 25. Qxd7 {[%emt
00:01:51]} Nxd7 {[%clk 00:44:56]} {[%emt 00:00:05]} 26. e6 {[%clk 00:51:33]}
{[%emt 00:00:21]} Ne5 {[%clk 00:43:42]} {[%emt 00:01:41]} 27. f4 {[%clk
00:50:05]} {[%emt 00:02:00]} fxe6 {[%clk 00:42:59]} {[%emt 00:01:13]} 28. Bxe6+
{[%clk 00:48:10]} {[%emt 00:02:25]} Nf7 {[%clk 00:43:13]} {[%emt 00:00:15]} 29.
Nd4 {[%clk 00:47:10]} {[%emt 00:01:30]} Re8 {[%clk 00:42:01]} {[%emt 00:01:42]}
30. Bxf7+ {[%clk 00:43:52]} {[%emt 00:03:49]} Kxf7 {[%clk 00:42:16]} {[%emt
00:00:15]} 31. Nxc6 {[%clk 00:44:13]} {[%emt 00:00:09]} Ra8 {[%clk 00:41:59]}
{[%emt 00:00:48]} 32. Nb4 {[%clk 00:44:26]} {[%emt 00:00:16]} Rb8 {[%clk
00:42:17]} {[%emt 00:00:12]} 33. Nd3 {[%clk 00:43:31]} {[%emt 00:01:25]} Rc8
{[%clk 00:42:07]} {[%emt 00:00:38]} 34. Nb4 {[%clk 00:43:48]} {[%emt 00:00:15]}
Rc4 {[%clk 00:42:14]} {[%emt 00:00:18]} 35. a3 {[%clk 00:43:22]} {[%emt
00:01:02]} Rxf4+ {[%clk 00:42:38]} {[%emt 00:00:06]} 36. Kg3 {[%clk 00:43:06]}
{[%emt 00:00:45]} Rc4 {[%clk 00:42:54]} {[%emt 00:00:11]} 37. Kf3 {[%clk
00:42:52]} {[%emt 00:00:46]} Rc3+ {[%clk 00:43:11]} {[%emt 00:00:13]} 38. Kf2
{[%clk 00:42:27]} {[%emt 00:00:56]} Rxa3 {[%clk 00:43:35]} {[%emt 00:00:06]} 39.
Kg2 {[%clk 00:42:24]} {[%emt 00:00:33]} Ra4 {[%clk 00:43:46]} {[%emt 00:00:17]}
40. Nd5 {[%clk 00:41:56]} {[%emt 00:01:01]} Rc4 {[%clk 00:43:51]} {[%emt
00:00:22]} 41. Ne3 {[%clk 00:41:44]} {[%emt 00:00:43]} Rc3 {[%clk 00:44:00]}
{[%emt 00:00:19]} 42. Kf2 {[%clk 00:41:17]} {[%emt 00:01:00]} Ke6 {[%clk
00:44:04]} {[%emt 00:00:23]} 43. Ke2 {[%clk 00:40:45]} {[%emt 00:01:06]} Ke5
{[%clk 00:44:03]} {[%emt 00:00:16]} 44. Kd2 {[%clk 00:40:40]} {[%emt 00:00:49]}
Rc6 {[%clk 00:43:53]} {[%emt 00:00:34]} 45. Ke2 {[%clk 00:39:58]} {[%emt
00:01:17]} Ke4 {[%clk 00:43:52]} {[%emt 00:00:28]} 46. Kd2 {[%clk 00:38:48]}
{[%emt 00:01:45]} Rf6 {[%clk 00:43:44]} {[%emt 00:00:35]} 47. Ke2 {[%clk
00:38:28]} {[%emt 00:00:51]} Rf3 {[%clk 00:43:40]} {[%emt 00:00:22]} 48. Nf1
{[%clk 00:38:20]} {[%emt 00:00:49]} Rc3 {[%clk 00:40:32]} {[%emt 00:03:05]} 49.
Ng3+ {[%clk 00:36:19]} {[%emt 00:03:06]} Kf4 {[%clk 00:40:04]} {[%emt
00:00:47]} 50. Kd2 {[%clk 00:35:11]} {[%emt 00:01:50]} Rc5 {[%clk 00:39:23]}
{[%emt 00:01:05]} 51. Ne2+ {[%clk 00:33:31]} {[%emt 00:02:14]} Kg4 {[%clk
00:38:30]} {[%emt 00:01:15]} 52. Nd4 {[%clk 00:32:58]} {[%emt 00:01:09]} Rh5
{[%clk 00:38:11]} {[%emt 00:00:48]} 0-1

[Event "Mistrovství Čech mládeže 2023 - HD12"]
[Site "Harrachov, Czech Republic"]
[Date "2023.10.28"]
[Round "9.20"]
[White "Vlček, Vítězslav"]
[Black "Kubát, Jonáš"]
[Result "1-0"]
[TimeControl "90m + 30s"]
[WhiteElo "1120"]
[BlackElo "1423"]

1. d4 {[%clk 01:30:53]} {[%emt 00:00:06]} d5 {[%clk 01:30:56]} {[%emt
00:00:05]} 2. c4 {[%clk 01:31:15]} {[%emt 00:00:08]} e6 {[%clk 01:31:22]}
{[%emt 00:00:03]} 3. Nc3 {[%clk 01:31:29]} {[%emt 00:00:16]} Nf6 {[%clk
01:31:35]} {[%emt 00:00:14]} 4. Nf3 {[%clk 01:31:41]} {[%emt 00:00:22]} c5
{[%clk 01:31:26]} {[%emt 00:00:39]} 5. e3 {[%clk 01:30:25]} {[%emt 00:01:46]}
Nc6 {[%clk 01:31:36]} {[%emt 00:00:20]} 6. Bd3 {[%clk 01:30:45]} {[%emt
00:00:10]} Bd6 {[%clk 01:31:04]} {[%emt 00:01:02]} 7. O-O {[%clk 01:29:32]}
{[%emt 00:01:42]} O-O {[%clk 01:30:51]} {[%emt 00:00:43]} 8. a3 {[%clk
01:22:20]} {[%emt 00:07:43]} dxc4 {[%clk 01:30:16]} {[%emt 00:01:05]} 9. Bxc4
{[%clk 01:22:37]} {[%emt 00:00:13]} Na5 {[%clk 01:30:34]} {[%emt 00:00:12]} 10.
Bd3 {[%clk 01:19:32]} {[%emt 00:03:34]} cxd4 {[%clk 01:30:45]} {[%emt
00:00:18]} 11. Nxd4 {[%clk 01:17:35]} {[%emt 00:02:27]} Be5 {[%clk 01:28:33]}
{[%emt 00:02:43]} 12. b4 {[%clk 01:07:48]} {[%emt 00:10:17]} Bxd4 {[%clk
01:28:48]} {[%emt 00:00:14]} 13. exd4 {[%clk 01:08:02]} {[%emt 00:00:16]} Qxd4
{[%clk 01:29:11]} {[%emt 00:00:08]} 14. Bxh7+ {[%clk 01:08:06]} {[%emt
00:00:26]} Kxh7 {[%clk 01:29:23]} {[%emt 00:00:17]} 15. Qxd4 {[%clk 01:08:19]}
{[%emt 00:00:18]} Nb3 {[%clk 01:29:46]} {[%emt 00:00:06]} 16. Qh4+ {[%clk
01:07:55]} {[%emt 00:00:52]} 1-0

[Event "Mistrovství Čech mládeže 2023 - HD12"]
[Site "Harrachov, Czech Republic"]
[Date "2023.10.28"]
[Round "9.21"]
[White "Melicharová, Veronika"]
[Black "Ježek, Jiří"]
[Result "0-1"]
[TimeControl "90m + 30s"]
[WhiteElo "1108"]
[BlackElo "1392"]

1. e4 {[%clk 01:30:54]} {[%emt 00:00:04]} c5 {[%clk 01:30:55]} {[%emt
00:00:06]} 2. Nf3 {[%clk 01:31:06]} {[%emt 00:00:18]} g6 {[%clk 01:31:06]}
{[%emt 00:00:19]} 3. d4 {[%clk 01:31:11]} {[%emt 00:00:24]} cxd4 {[%clk
01:31:25]} {[%emt 00:00:12]} 4. Qxd4 {[%clk 01:31:29]} {[%emt 00:00:12]} Nf6
{[%clk 01:31:42]} {[%emt 00:00:13]} 5. Nc3 {[%clk 01:31:01]} {[%emt 00:00:57]}
Nc6 {[%clk 01:30:52]} {[%emt 00:01:21]} 6. Qa4 {[%clk 01:30:24]} {[%emt
00:01:07]} d6 {[%clk 01:26:34]} {[%emt 00:04:49]} 7. e5 {[%clk 01:29:51]}
{[%emt 00:01:03]} dxe5 {[%clk 01:26:21]} {[%emt 00:00:43]} 8. Nxe5 {[%clk
01:29:53]} {[%emt 00:00:26]} Bd7 {[%clk 01:24:52]} {[%emt 00:02:00]} 9. Nxd7
{[%clk 01:28:50]} {[%emt 00:01:32]} Qxd7 {[%clk 01:24:26]} {[%emt 00:00:56]} 10.
Be2 {[%clk 01:28:28]} {[%emt 00:00:53]} Bg7 {[%clk 01:21:29]} {[%emt 00:03:27]}
11. O-O {[%clk 01:27:37]} {[%emt 00:01:21]} O-O {[%clk 01:21:07]} {[%emt
00:00:52]} 12. Be3 {[%clk 01:27:40]} {[%emt 00:00:26]} a6 {[%clk 01:20:17]}
{[%emt 00:01:22]} 13. Rfd1 {[%clk 01:25:15]} {[%emt 00:02:54]} Qc7 {[%clk
01:19:38]} {[%emt 00:01:09]} 14. Bf3 {[%clk 01:22:48]} {[%emt 00:02:56]} Ne5
{[%clk 01:14:35]} {[%emt 00:05:34]} 15. Bf4 {[%clk 01:17:45]} {[%emt 00:05:33]}
Nxf3+ {[%clk 01:14:06]} {[%emt 00:00:59]} 16. gxf3 {[%clk 01:17:59]} {[%emt
00:00:15]} Qc5 {[%clk 01:11:09]} {[%emt 00:03:28]} 17. Be3 {[%clk 01:17:05]}
{[%emt 00:01:24]} Qh5 {[%clk 01:09:55]} {[%emt 00:01:43]} 18. Qf4 {[%clk
01:11:43]} {[%emt 00:05:52]} Rfd8 {[%clk 01:01:34]} {[%emt 00:08:52]} 19. Qc7
{[%clk 01:08:41]} {[%emt 00:03:32]} Rxd1+ {[%clk 00:53:43]} {[%emt 00:08:21]}
20. Rxd1 {[%clk 01:08:54]} {[%emt 00:00:17]} Qxf3 {[%clk 00:52:32]} {[%emt
00:01:42]} 21. Rd8+ {[%clk 01:08:17]} {[%emt 00:01:06]} Rxd8 {[%clk 00:52:38]}
{[%emt 00:00:24]} 22. Qxd8+ {[%clk 01:08:35]} {[%emt 00:00:12]} Bf8 {[%clk
00:53:01]} {[%emt 00:00:06]} 23. Qd1 {[%clk 01:08:48]} {[%emt 00:00:18]} Qxd1+
{[%clk 00:51:43]} {[%emt 00:01:48]} 24. Nxd1 {[%clk 01:08:51]} {[%emt
00:00:25]} Nd5 {[%clk 00:51:16]} {[%emt 00:00:58]} 25. Bd2 {[%clk 01:08:08]}
{[%emt 00:01:13]} Bg7 {[%clk 00:49:41]} {[%emt 00:02:06]} 26. c3 {[%clk
01:07:57]} {[%emt 00:00:41]} Be5 {[%clk 00:46:33]} {[%emt 00:03:36]} 27. Kg2
{[%clk 01:07:31]} {[%emt 00:00:58]} Kg7 {[%clk 00:44:25]} {[%emt 00:02:38]} 28.
h3 {[%clk 01:07:42]} {[%emt 00:00:19]} Bf4 {[%clk 00:44:00]} {[%emt 00:00:56]}
29. Bxf4 {[%clk 01:07:32]} {[%emt 00:00:40]} Nxf4+ {[%clk 00:44:06]} {[%emt
00:00:23]} 30. Kg3 {[%clk 01:07:48]} {[%emt 00:00:13]} Nd3 {[%clk 00:43:10]}
{[%emt 00:01:27]} 31. b3 {[%clk 01:07:34]} {[%emt 00:00:44]} Nc1 {[%clk
00:41:04]} {[%emt 00:02:36]} 32. Kf4 {[%clk 01:06:25]} {[%emt 00:01:39]} Nxa2
{[%clk 00:40:30]} {[%emt 00:01:05]} 33. Ke5 {[%clk 01:06:42]} {[%emt 00:00:11]}
Kf8 {[%clk 00:35:06]} {[%emt 00:05:55]} 34. Kd5 {[%clk 01:06:43]} {[%emt
00:00:30]} Ke8 {[%clk 00:34:31]} {[%emt 00:01:04]} 35. Kc5 {[%clk 01:06:56]}
{[%emt 00:00:16]} Kd7 {[%clk 00:34:13]} {[%emt 00:00:49]} 36. Kb6 {[%clk
01:07:15]} {[%emt 00:00:12]} Kc8 {[%clk 00:34:33]} {[%emt 00:00:09]} 37. c4
{[%clk 01:07:26]} {[%emt 00:00:19]} Nc1 {[%clk 00:33:22]} 0-1